bitfinex-derivatives/quotes_ETHF0:USTF0_20240930
["timestamp","ask_amount","ask_price","bid_price","bid_amount"]
[1727713522271,0.38301,2610.7,2610.6,0.38302]
[1727713522466,5.1497,2610.9,2610.5,1.8741]
[1727713522467,6.6495724,2610.9,2610.5,1.8741]
[1727713522667,0.38301,2610.8,2610.7,0.38301]
[1727713523764,0.38301,2610.8,2610.5,4.2641]
[1727713524070,1.9419,2610.9,2610.5,4.2641]
[1727713524271,2.3249,2610.9,2610.8,0.383]
[1727713524868,1.9709,2611.0,2610.7,2.39]
[1727713525179,0.38299,2610.9,2610.8,2.2621]
[1727713526569,0.38299,2610.9,2610.8,1.8791]
[1727713527165,0.38302,2610.7,2610.6,0.38302]
[1727713527371,0.38302,2610.7,2610.6,0.38303]
[1727713527567,0.38302,2610.7,2610.5,6.984]
[1727713527767,0.38302,2610.7,2610.6,0.38303]
[1727713528071,0.95747,2610.9,2610.5,7.36703]
[1727713528271,0.38302,2610.7,2610.6,0.38303]
[1727713528567,0.38302,2610.7,2610.5,6.984]
[1727713528568,0.38303,2610.7,2610.5,7.36704]
[1727713528778,0.38301,2610.8,2610.6,0.38302]
[1727713528970,6.13614,2611.0,2610.5,6.984]
[1727713529273,0.383,2610.8,2610.6,0.38302]
[1727713529876,0.38301,2610.7,2610.6,0.38302]
[1727713530263,0.95747,2610.9,2610.5,7.36703]
[1727713530467,0.38303,2610.7,2610.5,7.36704]
[1727713530878,5.1787,2611.0,2610.5,7.36704]
[1727713530879,0.38303,2610.6,2610.5,7.36704]
[1727713531193,0.38302,2610.7,2610.6,0.38302]
[1727713531774,0.383,2610.8,2610.5,9.374]
[1727713531976,6.13616,2611.0,2610.6,0.38302]
[1727713532170,0.38301,2610.8,2610.6,0.38302]
[1727713532375,0.38301,2610.8,2610.7,0.38301]
[1727713533268,0.38301,2610.8,2610.5,9.374]
[1727713533269,0.38301,2610.8,2610.6,0.38302]
[1727713533471,0.38301,2610.7,2610.6,0.38303]
[1727713533665,2.92836,2611.0,2610.7,0.38301]
[1727713533666,0.38301,2610.8,2610.7,0.38301]
[1727713533869,0.38301,2610.8,2610.6,0.38302]
[1727713534075,0.38301,2610.7,2610.6,0.38302]
[1727713534278,0.38303,2610.6,2610.5,7.36703]
[1727713534488,0.95749,2610.9,2610.6,0.38302]
[1727713534489,0.38302,2610.7,2610.6,0.38302]
[1727713535568,0.95751,2610.8,2610.5,7.36704]
[1727713535877,0.38302,2610.7,2610.6,0.38303]
[1727713536076,0.38302,2610.7,2610.5,5.1099]
[1727713536077,0.38303,2610.6,2610.5,5.1099]
[1727713536285,4.05153,2610.6,2610.5,3.2078]
[1727713536489,2.25163,2610.6,2610.5,3.2078]
[1727713536669,0.95751,2610.8,2610.5,3.2078]
[1727713536874,3.2997724,2610.9,2610.5,3.2078]
[1727713536875,3.3784724,2610.9,2610.5,2.39]
[1727713537179,0.38302,2610.7,2610.6,5.96782]
[1727713537782,2.2616,2610.9,2610.8,0.383]
[1727713539078,0.38301,2610.8,2610.7,0.383]
[1727713539273,2.2616,2610.9,2610.8,0.383]
[1727713539581,0.38301,2610.8,2610.7,0.383]
[1727713539978,2.26159,2610.9,2610.8,0.383]
[1727713541180,1.8786,2610.9,2610.6,8.7926]
[1727713541389,0.38301,2610.8,2610.7,0.38301]
[1727713541681,2.2616,2610.9,2610.8,0.383]
[1727713543380,0.38301,2610.8,2610.7,0.383]
[1727713543771,1.8786,2610.9,2610.6,6.6848]
[1727713543977,2.83608,2610.9,2610.6,6.6848]
[1727713544178,0.38301,2610.8,2610.7,0.38301]
[1727713545683,0.38301,2610.7,2610.6,7.06782]
[1727713547687,0.38301,2610.7,2610.6,1.8037]
[1727713547886,0.38301,2610.7,2610.6,2.18673]
[1727713548083,0.38301,2610.7,2610.6,1.8037]
[1727713548389,0.38301,2610.7,2610.6,2.18673]
[1727713553085,0.38301,2610.7,2610.6,1.8037]
[1727713553280,1.1,2610.7,2610.2,3.2078]
[1727713553586,0.38304,2610.6,2610.4,0.38305]
[1727713553986,0.38306,2610.4,2610.3,1.9016]
[1727713554179,0.38306,2610.4,2610.3,2.28467]
[1727713554385,5.6744224,2610.5,2610.4,0.38306]
[1727713554691,4.17455,2610.5,2610.4,0.38306]
[1727713555089,5.2913724,2610.5,2610.4,0.38306]
[1727713555293,5.6744124,2610.5,2610.4,0.38306]
[1727713556294,5.6744124,2610.5,2610.3,3.0016]
[1727713556590,5.6744124,2610.5,2610.3,3.38466]
[1727713557490,5.6744124,2610.5,2610.3,2.28466]
[1727713557803,1.4998724,2610.4,2610.3,2.28466]
[1727713558097,5.6744124,2610.5,2610.3,2.28466]
[1727713558398,1.4998724,2610.4,2610.3,2.28466]
[1727713558593,1.4998724,2610.4,2610.3,1.9016]
[1727713558904,1.8829324,2610.4,2610.3,1.9016]
[1727713559796,0.38306,2610.4,2610.3,1.9016]
[1727713560785,2.39220989,2610.4,2610.3,1.9016]
[1727713561800,2.39220989,2610.4,2610.3,2.28467]
[1727713562003,2.39220989,2610.4,2610.3,1.9016]
[1727713564095,0.38306,2610.4,2610.3,1.9016]
[1727713564296,2.8852183,2610.4,2610.3,1.9016]
[1727713565101,0.38306,2610.4,2610.3,1.9016]
[1727713565297,9.5014583,2610.5,2610.3,1.9016]
[1727713565504,0.38306,2610.4,2610.3,1.9016]
[1727713566002,0.38306,2610.4,2610.3,2.28467]
[1727713566406,0.38306,2610.4,2610.3,1.9016]
[1727713566795,2.9197183,2610.4,2610.3,1.9016]
[1727713569003,2.9197183,2610.4,2610.3,2.28467]
[1727713569305,2.9197183,2610.4,2610.3,4.67467]
[1727713571902,2.9197183,2610.4,2610.3,4.2916]
[1727713572108,0.41756,2610.4,2610.3,4.67467]
[1727713572408,2.9197183,2610.4,2610.3,4.67467]
[1727713573801,2.9197183,2610.4,2610.3,4.2916]
[1727713574000,2.9197183,2610.4,2610.3,4.67467]
[1727713574209,2.9197183,2610.4,2610.3,4.2916]
[1727713575115,0.41756,2610.4,2610.3,4.2916]
[1727713576197,2.9197183,2610.4,2610.3,4.2916]
[1727713576404,0.41756,2610.4,2610.3,4.2916]
[1727713577108,0.41756,2610.4,2610.3,4.67467]
[1727713577600,2.9197183,2610.4,2610.3,2.28467]
[1727713577905,2.9197183,2610.4,2610.3,3.0016]
[1727713578907,2.9197183,2610.4,2610.3,3.38467]
[1727713579807,2.9197183,2610.4,2610.3,3.0016]
[1727713580406,2.9197183,2610.4,2610.3,3.38467]
[1727713581109,2.9197183,2610.4,2610.3,3.0016]
[1727713581310,2.9197183,2610.4,2610.3,3.38467]
[1727713582101,2.04324819,2610.4,2610.3,7.21587]
[1727713582300,1.54098954,2610.4,2610.3,7.21587]
[1727713582813,0.0345,2610.4,2610.3,7.21587]
[1727713583005,0.0345,2610.4,2610.3,8.22162323]
[1727713585512,0.0345,2610.4,2610.3,7.21587]
[1727713585902,1.54098954,2610.4,2610.3,7.21587]
[1727713588608,1.50648954,2610.4,2610.3,7.21587]
[1727713589111,1.88954954,2610.4,2610.3,7.21587]
[1727713589317,1.50648954,2610.4,2610.3,3.38467]
[1727713589813,1.88954954,2610.4,2610.3,3.38467]
[1727713590216,1.50648954,2610.4,2610.3,3.38467]
[1727713593016,0.38306,2610.4,2610.3,3.38467]
[1727713593217,4.23783819,2610.5,2610.4,0.38306]
[1727713593410,4.23783819,2610.5,2610.4,1.48306]
[1727713593809,3.85474819,2610.5,2610.4,1.48306]
[1727713594015,4.23782819,2610.5,2610.4,1.48306]
[1727713594914,3.85474819,2610.5,2610.4,1.48306]
[1727713595507,4.23782819,2610.5,2610.4,1.48306]
[1727713596716,2.22908,2610.5,2610.4,1.48306]
[1727713601521,2.22908,2610.5,2610.4,1.1]
[1727713601522,4.7312383,2610.5,2610.4,1.1]
[1727713601723,4.7312383,2610.5,2610.4,1.4831]
[1727713602420,2.22908,2610.5,2610.4,1.4831]
[1727713602619,4.7312383,2610.5,2610.4,1.4831]
[1727713604524,2.22908,2610.5,2610.4,1.4831]
[1727713606728,2.22908,2610.5,2610.4,0.3831]
[1727713606929,2.22908,2610.5,2610.4,1.4831]
[1727713607724,2.22908,2610.5,2610.4,1.1]
[1727713608118,5.43688,2610.5,2610.4,1.1]
[1727713609030,5.43688,2610.5,2610.4,1.4831]
[1727713610027,7.94901006,2610.5,2610.4,1.4831]
[1727713611128,5.43688,2610.5,2610.4,1.4831]
[1727713612528,5.43688,2610.5,2610.4,1.1]
[1727713612729,5.43688,2610.5,2610.4,1.4831]
[1727713616328,5.47138,2610.5,2610.4,1.4831]
[1727713618226,5.47138,2610.5,2610.4,1.1]
[1727713619640,5.47138,2610.5,2610.4,1.4831]
[1727713619839,5.47138,2610.5,2610.4,1.1]
[1727713620139,5.47138,2610.5,2610.4,1.4831]
[1727713620633,5.47138,2610.5,2610.4,1.1]
[1727713621538,5.47138,2610.5,2610.4,1.4831]
[1727713625042,5.47138,2610.5,2610.4,1.1]
[1727713625233,5.47138,2610.5,2610.4,1.4831]
[1727713630550,3.2423,2610.5,2610.4,1.4831]
[1727713630746,2.5469387,2610.5,2610.4,5.3135]
[1727713631042,2.5124387,2610.8,2610.4,13.20013912]
[1727713631241,2.5124387,2610.9,2610.8,0.38304]
[1727713631442,2.5124387,2610.9,2610.8,2.9082]
[1727713631637,2.89485102,2610.9,2610.8,1.8082]
[1727713631837,6.10265102,2610.9,2610.8,0.38304]
[1727713632041,5.71963102,2610.9,2610.8,1.48304]
[1727713632251,6.10265102,2610.9,2610.8,1.48304]
[1727713632438,5.71963102,2610.9,2610.8,1.48304]
[1727713632647,2.51183102,2611.0,2610.8,1.1]
[1727713632844,2.51183102,2611.0,2610.9,1.48302]
[1727713633339,2.89484102,2611.0,2610.9,1.48302]
[1727713634146,2.51183102,2611.0,2610.9,1.48302]
[1727713635550,2.89484102,2611.0,2610.9,1.48302]
[1727713635753,2.51183102,2611.0,2610.9,1.48302]
[1727713635949,2.89484102,2611.0,2610.9,1.48302]
[1727713636147,2.89484102,2611.0,2610.9,0.38302]
[1727713637058,2.51183102,2611.0,2610.9,0.38302]
[1727713637355,2.89484102,2611.0,2610.9,0.38302]
[1727713637549,2.51183102,2611.0,2610.9,0.38302]
[1727713637759,4.82513102,2611.1,2611.0,0.38301]
[1727713637955,4.82513102,2611.1,2611.0,2.19751]
[1727713640253,1.9303,2611.1,2611.0,2.19751]
[1727713640557,5.71963102,2611.2,2611.1,0.38299]
[1727713640755,6.10261102,2611.2,2611.1,1.48299]
[1727713640960,6.10261102,2611.2,2611.1,3.35359]
[1727713641263,3.59078,2611.2,2611.1,3.35359]
[1727713641856,3.59078,2611.2,2611.0,2.9145]
[1727713642059,3.59078,2611.2,2611.1,0.38299]
[1727713643967,3.59078,2611.2,2611.1,1.48299]
[1727713645062,0.38297,2611.3,2611.2,0.38298]
[1727713645265,2.51183102,2611.4,2611.2,0.38298]
[1727713645266,1.9078,2611.4,2611.3,0.38297]
[1727713645571,3.41168855,2611.4,2611.3,0.38297]
[1727713645872,3.41168855,2611.4,2611.3,2.29737]
[1727713646356,3.79463855,2611.4,2611.3,2.29737]
[1727713646561,3.41168855,2611.4,2611.3,2.29737]
[1727713646859,3.41168855,2611.4,2611.3,4.16207]
[1727713647259,1.50388855,2611.4,2611.3,7.99167]
[1727713647463,1.50388855,2611.6,2611.5,0.38294]
[1727713647769,1.50388855,2611.7,2611.5,1.48294]
[1727713647959,1.50388855,2611.7,2611.6,3.17932]
[1727713648166,1.50388855,2611.7,2611.6,2.7964]
[1727713648870,1.88679855,2611.7,2611.6,2.7964]
[1727713649373,1.8191,2611.7,2611.5,1.1]
[1727713649670,1.8191,2611.7,2611.3,1.8647]
[1727713649671,0.38295,2611.4,2611.3,1.8647]
[1727713649859,0.38295,2611.4,2611.3,2.9647]
[1727713650964,3.24634518,2611.6,2611.3,2.9647]
[1727713651164,3.24634518,2611.6,2611.5,1.1]
[1727713651165,3.62926518,2611.6,2611.5,1.1]
[1727713653067,3.24634518,2611.6,2611.4,1.1]
[1727713653267,0.38294,2611.5,2611.4,1.1]
[1727713653568,1.88528518,2611.5,2611.4,1.1]
[1727713656378,8.53974518,2611.5,2610.9,3.399]
[1727713656579,0.38308,2610.6,2610.3,3.59091]
[1727713656772,0.38304,2610.8,2610.7,1.1]
[1727713656971,0.38308,2610.6,2610.5,1.1]
[1727713657468,2.04546,2610.7,2610.5,1.1]
[1727713658278,2.04546,2610.7,2610.3,3.2078]
[1727713658279,0.3831,2610.4,2610.3,3.2078]
[1727713658470,4.12144484,2610.7,2610.3,4.3078]
[1727713658775,1.88444484,2610.6,2610.5,1.1]
[1727713662576,5.71484484,2610.6,2610.5,1.1]
[1727713663376,1.88444484,2610.6,2610.5,1.1]
[1727713674889,5.09224484,2610.6,2610.5,1.1]
[1727713675579,3.16377484,2610.7,2610.5,1.1]
[1727713675892,2.04546,2610.7,2610.6,4.87377]
[1727713676483,2.04546,2610.7,2610.6,4.4907]
[1727713676687,2.04546,2610.7,2610.6,3.3907]
[1727713676881,3.54683484,2610.7,2610.6,3.3907]
[1727713678486,0.38308,2610.6,2610.5,1.48307]
[1727713679189,0.38308,2610.6,2610.5,3.13337]
[1727713679392,0.38308,2610.6,2610.5,2.7503]
[1727713679587,0.38308,2610.6,2610.5,1.1]
[1727713679798,0.38308,2610.6,2610.5,1.48308]
[1727713680280,0.38308,2610.6,2610.5,1.1]
[1727713681591,0.38308,2610.6,2610.5,1.48308]
[1727713681892,1.88445484,2610.6,2610.5,1.48308]
[1727713682089,0.38308,2610.6,2610.5,1.48308]
[1727713682686,0.38308,2610.6,2610.5,1.1]
[1727713683089,0.38308,2610.5,2610.4,3.4339]
[1727713684385,2.06798,2610.5,2610.4,3.4339]
[1727713687801,2.06798,2610.5,2610.4,4.5339]
[1727713687985,2.06798,2610.5,2610.4,4.917]
[1727713688491,2.06798,2610.5,2610.4,4.5339]
[1727713690100,2.06798,2610.5,2610.4,3.4339]
[1727713691504,3.56935484,2610.5,2610.4,3.4339]
[1727713692699,3.56935484,2610.5,2610.4,3.817]
[1727713692997,3.56935484,2610.5,2610.4,3.4339]
[1727713693798,3.56935484,2610.5,2610.4,3.817]
[1727713694003,3.56935484,2610.5,2610.4,3.4339]
[1727713694499,2.06798,2610.5,2610.4,3.4339]
[1727713695200,5.20874221,2610.6,2610.4,4.917]
[1727713695403,1.50040237,2610.5,2610.4,4.91699]
[1727713695596,1.50040237,2610.6,2610.5,0.38308]
[1727713695798,1.50040237,2610.6,2610.5,1.48308]
[1727713696100,1.6624,2610.7,2610.5,4.9304]
[1727713696101,1.50040237,2610.7,2610.5,4.9304]
[1727713696290,1.50040237,2610.7,2610.6,0.38307]
[1727713696491,2.00094221,2610.9,2610.8,0.38304]
[1727713696701,1.50156145,2610.9,2610.8,0.38304]
[1727713696893,1.50156145,2610.9,2610.8,3.8304]
[1727713697095,1.50156145,2611.0,2610.9,0.38302]
[1727713697396,0.38301,2611.0,2610.9,4.5471]
[1727713697599,0.38301,2611.0,2610.9,4.93012]
[1727713698305,2.00094221,2611.1,2610.9,4.5471]
[1727713698603,2.00094221,2611.0,2610.9,4.93012]
[1727713698997,2.38395221,2611.0,2610.9,4.93012]
[1727713699302,2.38395221,2611.0,2610.9,4.5471]
[1727713699698,0.38301,2611.0,2610.9,4.5471]
[1727713700295,2.38658991,2611.0,2610.9,4.5471]
[1727713700502,2.51183102,2611.1,2610.9,4.5471]
[1727713700803,2.89483102,2611.1,2610.9,4.93012]
[1727713701203,2.51183102,2611.1,2610.9,4.5471]
[1727713701396,2.89483102,2611.1,2610.9,4.5471]
[1727713701592,2.89483102,2611.1,2611.0,0.38301]
[1727713701796,0.38301,2611.0,2610.9,4.93012]
[1727713701992,2.00533256,2611.0,2610.9,4.93012]
[1727713702403,2.89483102,2611.1,2610.9,4.93012]
[1727713703294,0.38301,2611.0,2610.9,4.93012]
[1727713703999,2.89483102,2611.1,2611.0,0.38301]
[1727713704492,2.89483102,2611.1,2610.9,4.5471]
[1727713704493,2.51183102,2611.1,2610.9,4.5471]
[1727713704696,2.00517886,2611.0,2610.9,4.93012]
[1727713705408,2.38818886,2611.0,2610.9,4.93012]
[1727713706907,2.38818886,2611.0,2610.9,4.5471]
[1727713707198,2.38818886,2611.0,2610.9,4.93012]
[1727713712107,3.75557886,2611.0,2610.9,4.93012]
[1727713712508,4.13858886,2611.0,2610.9,4.93012]
[1727713712906,3.75557886,2611.0,2610.9,4.93012]
[1727713713708,4.13858886,2611.0,2610.9,4.93012]
[1727713713904,4.13858886,2611.0,2610.9,3.4471]
[1727713714104,4.13858886,2611.0,2610.9,1.7195]
[1727713714702,4.13858886,2611.0,2610.9,2.10252]
[1727713715306,4.13858886,2611.0,2610.9,1.7195]
[1727713715501,0.38302,2610.9,2610.8,1.48303]
[1727713715708,2.38819886,2610.9,2610.8,1.48303]
[1727713715910,0.38302,2610.9,2610.8,1.48303]
[1727713716419,0.38304,2610.8,2610.7,2.07695]
[1727713717215,1.88466187,2610.8,2610.7,2.07695]
[1727713717611,0.38304,2610.8,2610.7,2.07695]
[1727713717819,0.38304,2610.8,2610.6,4.4868]
[1727713717820,0.38305,2610.7,2610.6,4.86986]
[1727713718019,3.59862811,2610.7,2610.6,4.86986]
[1727713718918,3.21557811,2610.7,2610.6,4.86986]
[1727713720009,0.38308,2610.5,2610.4,0.38308]
[1727713720208,1.88462803,2610.5,2610.3,6.0509]
[1727713720413,3.51784803,2610.4,2610.3,6.43401]
[1727713721008,3.13474803,2610.4,2610.3,6.0509]
[1727713721213,3.51784803,2610.4,2610.3,6.43401]
[1727713721413,3.13474803,2610.4,2610.3,6.43401]
[1727713723320,3.13474803,2610.4,2610.3,3.22621]
[1727713723515,1.50154803,2610.5,2610.3,2.8431]
[1727713723721,1.50154803,2610.5,2610.4,0.3831]
[1727713726416,0.3831,2610.5,2610.4,1.48309]
[1727713726623,4.10046404,2610.5,2610.4,1.4831]
[1727713728327,4.10046404,2610.5,2610.4,1.1]
[1727713728525,4.10046404,2610.5,2610.4,1.4831]
[1727713728828,2.0984,2610.5,2610.4,1.4831]
[1727713729326,4.10046404,2610.5,2610.4,1.4831]
[1727713730026,4.10046404,2610.5,2610.4,1.1]
[1727713730716,2.0984,2610.5,2610.4,1.1]
[1727713731527,2.0984,2610.5,2610.2,1.1]
[1727713731821,0.38313,2610.2,2610.1,2.7446]
[1727713732018,0.38313,2610.2,2610.1,3.12774]
[1727713732319,2.02923,2610.2,2610.1,3.12774]
[1727713732919,2.02923,2610.2,2610.1,1.6446]
[1727713733120,2.02923,2610.2,2610.1,2.02774]
[1727713733735,1.6461,2610.2,2610.1,2.02774]
[1727713734026,2.02923,2610.2,2610.1,2.02774]
[1727713734616,3.53065193,2610.2,2610.1,2.02774]
[1727713740724,3.14752193,2610.2,2610.1,2.02774]
[1727713741028,3.53065193,2610.2,2610.1,2.02774]
[1727713742832,3.14752193,2610.2,2610.1,2.02774]
[1727713743926,3.53065193,2610.2,2610.1,2.02774]
[1727713744434,3.14752193,2610.2,2610.1,2.02774]
[1727713745424,3.53065193,2610.2,2610.1,2.02774]
[1727713755539,2.02923,2610.2,2610.1,2.02774]
[1727713756024,3.53176259,2610.2,2610.1,2.02774]
[1727713756328,2.02923,2610.2,2610.1,2.02774]
[1727713758837,4.03078848,2610.2,2610.1,2.02774]
[1727713761536,4.03078848,2610.2,2610.1,0.38314]
[1727713763536,2.02923,2610.2,2610.1,0.38314]
[1727713763743,4.03454275,2610.2,2610.1,0.38314]
[1727713763940,2.02923,2610.2,2610.1,0.38314]
[1727713765539,4.57556102,2610.2,2610.1,0.38314]
[1727713765935,4.19243102,2610.2,2610.0,2.7535]
[1727713766136,0.38316,2610.0,2609.9,1.6603]
[1727713766542,2.89499102,2610.0,2609.9,2.04347]
[1727713767241,0.38316,2610.0,2609.9,2.04347]
[1727713767564,2.89499102,2610.0,2609.9,2.04347]
[1727713768342,4.61468102,2610.1,2610.0,0.38316]
[1727713768643,4.61089323,2610.1,2610.0,0.38316]
[1727713769142,4.61113802,2610.1,2610.0,0.38316]
[1727713769645,2.10285,2610.1,2610.0,0.38316]
[1727713770242,4.61142118,2610.1,2610.0,0.38316]
[1727713770739,2.10285,2610.1,2610.0,0.38316]
[1727713772741,2.10285,2610.1,2609.9,2.04347]
[1727713772742,0.38316,2610.0,2609.9,2.04347]
[1727713772942,2.8925022,2610.0,2609.9,2.04347]
[1727713773647,0.38316,2610.0,2609.9,2.04347]
[1727713774050,2.89244106,2610.0,2609.9,3.14347]
[1727713774648,0.38316,2610.0,2609.9,3.14347]
[1727713774851,2.8925679,2610.0,2609.9,3.14347]
[1727713775552,0.38316,2610.0,2609.9,3.14347]
[1727713779959,0.38316,2610.0,2609.6,1.38895323]
[1727713779960,0.3832,2609.7,2609.6,1.38895323]
[1727713780258,2.50972382,2609.7,2609.6,0.38321]
[1727713780561,2.89292382,2609.7,2609.6,1.48321]
[1727713780855,2.50972382,2609.7,2609.6,1.48321]
[1727713781247,6.10071382,2609.8,2609.7,0.3832]
[1727713783754,5.71752382,2609.8,2609.6,1.1]
[1727713783947,6.10072382,2609.8,2609.7,0.3832]
[1727713784863,0.3832,2609.7,2609.6,1.4832]
[1727713785259,2.00605597,2609.7,2609.6,1.48321]
[1727713785455,2.38925597,2609.7,2609.6,1.48321]
[1727713785660,2.00605597,2609.7,2609.6,1.48321]
[1727713786161,2.38925597,2609.7,2609.6,1.48321]
[1727713787158,2.00605597,2609.7,2609.6,1.48321]
[1727713787754,2.38925597,2609.7,2609.6,1.48321]
[1727713789061,2.00605597,2609.7,2609.6,1.48321]
[1727713789366,2.38925597,2609.7,2609.6,1.48321]
[1727713797268,2.00605597,2609.7,2609.5,1.1]
[1727713797461,3.63298162,2609.6,2609.5,1.48321]
[1727713800265,2.12881,2609.6,2609.5,1.48321]
[1727713800961,2.12882,2609.6,2609.5,0.38323]
[1727713801167,4.63854382,2609.6,2609.5,0.38323]
[1727713802065,4.25532382,2609.6,2609.4,4.9127]
[1727713802473,0.38323,2609.5,2609.4,5.29593]
[1727713802766,2.89295382,2609.5,2609.4,5.29594]
[1727713802965,2.50972382,2609.5,2609.4,5.29594]
[1727713803167,4.13623942,2609.6,2609.4,4.9127]
[1727713803370,4.13623942,2609.6,2609.5,1.48323]
[1727713804164,4.13623942,2609.6,2609.5,1.1]
[1727713804165,3.75302942,2609.6,2609.5,1.1]
[1727713804360,4.13623942,2609.6,2609.5,1.1]
[1727713804565,0.38323,2609.5,2609.4,6.39593]
[1727713804769,3.75302942,2609.6,2609.5,0.38323]
[1727713804974,4.13623942,2609.6,2609.5,0.38323]
[1727713806265,0.38323,2609.5,2609.4,4.9127]
[1727713806466,2.39080067,2609.5,2609.4,4.9127]
[1727713807075,2.39080067,2609.5,2609.4,5.29594]
[1727713807377,2.39080067,2609.5,2609.4,4.9127]
[1727713807777,3.59103,2609.5,2609.4,1.5577]
[1727713808070,0.38327,2609.2,2609.1,3.55928]
[1727713808276,0.38327,2609.2,2609.1,3.176]
[1727713808467,5.59912052,2609.2,2609.1,1.5699]
[1727713808666,5.21585052,2609.2,2608.7,5.31845323]
[1727713808864,2.96628052,2609.1,2608.7,5.31845323]
[1727713809065,0.38333,2608.9,2608.8,0.38333]
[1727713809872,2.00511,2609.0,2608.9,0.38332]
[1727713810975,0.9583,2608.9,2608.4,1.38913323]
[1727713811273,2.50972382,2608.6,2608.0,2.05863]
[1727713811573,1.1,2608.4,2608.3,0.38341]
[1727713811772,1.6706,2608.5,2608.3,0.38341]
[1727713811968,0.3834,2608.4,2608.1,3.56093]
[1727713812169,1.6706,2608.5,2608.1,3.1775]
[1727713812365,0.38342,2608.3,2608.1,3.1775]
[1727713812574,0.38342,2608.2,2608.1,3.1775]
[1727713812775,1.5489,2608.2,2608.1,3.56094]
[1727713813077,1.5489,2608.2,2608.1,3.1775]
[1727713813872,1.5489,2608.2,2608.1,3.56094]
[1727713814280,1.6706,2608.5,2608.1,4.2775]
[1727713814473,3.69148,2608.5,2608.1,4.66092]
[1727713814775,3.69148,2608.5,2608.1,4.66093]
[1727713814969,3.69148,2608.5,2608.2,0.38342]
[1727713815378,3.69148,2608.5,2608.1,4.66093]
[1727713815974,3.3081,2608.5,2608.1,4.2775]
[1727713816284,0.3834,2608.4,2608.1,4.66093]
[1727713816676,3.69149,2608.5,2608.1,4.66093]
[1727713816873,3.3081,2608.5,2608.1,4.2775]
[1727713817077,3.3081,2608.5,2608.3,1.4834]
[1727713817479,3.3081,2608.5,2608.3,1.1]
[1727713817674,3.3081,2608.5,2608.3,1.4834]
[1727713818075,3.3081,2608.5,2608.3,1.1]
[1727713818284,3.69148,2608.5,2608.3,1.1]
[1727713818878,3.69148,2608.5,2608.3,1.4834]
[1727713819576,3.3081,2608.5,2608.3,1.4834]
[1727713819782,3.69148,2608.5,2608.3,1.4834]
[1727713820091,4.16608,2609.0,2608.4,4.9336]
[1727713820284,4.16608,2609.0,2608.2,3.2078]
[1727713820285,1.6844,2608.9,2608.6,0.38336]
[1727713820483,0.38334,2608.8,2608.6,3.54986]
[1727713820989,0.38334,2608.8,2608.7,0.38335]
[1727713821373,1.6844,2608.9,2608.7,1.1]
[1727713821587,3.2078,2609.0,2608.9,0.38332]
[1727713822289,3.2078,2609.0,2608.9,1.96622]
[1727713827979,1.48329,2609.1,2608.9,1.5829]
[1727713828179,1.48329,2609.1,2609.0,0.3833]
[1727713831379,3.2078,2609.2,2608.9,1.5829]
[1727713831586,3.2423,2609.6,2609.1,1.1]
[1727713831779,3.2423,2609.6,2608.9,8.6235]
[1727713831780,5.13391,2609.6,2609.5,0.38323]
[1727713831988,5.13391,2609.6,2609.2,4.12599]
[1727713831989,4.7507,2609.6,2609.2,3.1678]
[1727713832189,0.38326,2609.3,2609.2,3.55106]
[1727713832589,1.1,2609.4,2609.2,3.1678]
[1727713832884,1.1,2609.4,2609.3,0.38326]
[1727713833090,1.48324,2609.4,2609.3,0.38326]
[1727713833587,1.1,2609.4,2609.3,0.38326]
[1727713834188,5.8507,2609.6,2609.2,3.1678]
[1727713834393,6.23393,2609.6,2609.5,0.38323]
[1727713834988,5.13393,2609.6,2609.5,0.38323]
[1727713836689,5.09943,2609.6,2609.5,0.38323]
[1727713837892,4.7162,2609.6,2609.5,0.38323]
[1727713838297,3.2078,2609.6,2609.5,0.38323]
[1727713838503,1.5073,2609.8,2609.7,0.3832]
[1727713838690,1.5073,2610.2,2609.7,2.05797]
[1727713838889,1.5073,2610.2,2610.1,1.48314]
[1727713839201,1.998,2610.4,2610.3,0.38311]
[1727713839405,1.998,2610.4,2610.1,0.38314]
[1727713839406,1.6149,2610.4,2610.1,0.38314]
[1727713839600,0.38312,2610.3,2610.1,0.38313]
[1727713839893,1.1,2610.3,2609.9,4.3078]
[1727713840096,4.69093,2610.2,2610.1,0.38314]
[1727713840597,4.3078,2610.2,2609.8,4.7806]
[1727713840798,2.49837867,2610.0,2609.8,4.7806]
[1727713840996,2.49837867,2610.0,2609.9,0.38317]
[1727713841195,2.49837867,2610.0,2609.9,5.31437]
[1727713841497,2.49837867,2610.0,2609.9,4.21437]
[1727713842294,2.49837867,2610.1,2609.9,6.2212]
[1727713842504,2.49837867,2610.1,2610.0,0.38316]
[1727713843105,2.49837867,2610.1,2610.0,4.21436]
[1727713843309,2.49837867,2610.2,2610.0,3.8312]
[1727713843604,2.49837867,2610.2,2610.1,0.38314]
[1727713844201,1.6149,2610.4,2610.3,0.38311]
[1727713844598,1.998,2610.4,2610.3,0.38311]
[1727713848206,1.6149,2610.4,2610.3,0.38311]
[1727713848600,3.59089,2610.5,2610.4,0.3831]
[1727713848601,3.2078,2610.5,2610.4,0.3831]
[1727713848805,3.2078,2610.5,2610.1,0.95786]
[1727713848806,1.6073,2610.7,2610.2,2.39]
[1727713849002,0.38307,2610.6,2610.5,0.38307]
[1727713849199,1.99036,2610.7,2610.6,0.38307]
[1727713850405,0.38307,2610.6,2610.5,0.38307]
[1727713851513,1.5587,2610.6,2610.5,0.38307]
[1727713852307,1.94177,2610.6,2610.5,0.38307]
[1727713853600,1.5587,2610.6,2610.5,0.38307]
[1727713854005,1.94177,2610.6,2610.5,0.38307]